Cogmind - Beta 13 @@@ ROGUE MODE // 2024.05.03 @ 02:47:48 Player: Wyvric Result: Destroyed by as-61264 with Assembled Heavy Rifle Performance ------------- Evolutions (0) 0 Regions Visited (2) 400 Robots Destroyed (14) 70 Value Destroyed (349) 349 Prototype IDs (5) 100 Alien Tech Used (0) 0 Bonus (0) 0 TOTAL SCORE: 919 Bonus ------- None Cogmind --------- Core Integrity 0/250 Matter 256/300 Energy 94/100 System Corruption 5% Temperature Cool (0) Movement Rolling (95) Ox1 Location -10/Mines Parts ------- > --- POWER (1) -------- (None) > --- PROPULSION (2) --- Wheel Wheel > --- UTILITY (2) ------ High-capacity Storage Unit > --- WEAPON (2) ------- (None) > --- INVENTORY (20) --- Ion Engine Ion Engine Light Treads Aluminum Leg Aluminum Leg Aluminum Leg Aluminum Leg EM Pulse Gun Light Assault Rifle Peak State ------------ > --- POWER ------------ Ion Engine > --- PROPULSION ------- Aluminum Leg Aluminum Leg > --- UTILITY ---------- High-capacity Storage Unit Targeting Computer > --- WEAPON ----------- Particle Gun Assault Rifle > --- INVENTORY -------- Ion Engine Ion Engine Light Treads Light Treads Light Treads Aluminum Leg Aluminum Leg Wheel Wheel Experimental Sensor Array Propulsion Shielding EM Pulse Gun Light Assault Rifle [Rating: 10] Favorites ----------- Power Ion Engine Engine Ion Engine Propulsion Aluminum Leg Treads Light Treads Leg Aluminum Leg Wheel Wheel Utility Targeting Computer Storage Small Storage Unit Processor Targeting Computer Protection Propulsion Shielding Weapon Assault Rifle Energy Gun Particle Gun Ballistic Gun Assault Rifle Build | -11 -10 -10 ------- Run | Yrd Mat Min Slots Evolved . | . . . Power . | . . . Propulsion . | . . . Utility . | . . . Weapon . | . . . Parts Attached 18 | 6 4 8 Power 1 | 1 . . Engine 1 | 1 . . Core . | . . . Reactor . | . . . Propulsion 10 | 2 2 6 Treads 2 | . . 2 Leg 4 | 2 2 . Wheel 4 | . . 4 Hover . | . . . Flight . | . . . Utility 4 | 1 2 1 Device . | . . . Storage 2 | 1 1 . Processor 1 | . 1 . Hackware . | . . . Protection 1 | . . 1 Artifact . | . . . Weapon 3 | 2 . 1 Energy Gun 1 | . . 1 Energy Cannon . | . . . Ballistic Gun 2 | 2 . . Ballistic Cannon . | . . . Launcher . | . . . Special Weapon . | . . . Impact Weapon . | . . . Slashing Weapon . | . . . Piercing Weapon . | . . . Special Melee Weapon . | . . . Unidentified Prototypes 1 | . . 1 Parts Lost 7 | . . 7 Power 1 | . . 1 Propulsion 2 | . . 2 Utility 2 | . . 2 Weapon 2 | . . 2 Highest Loss Streak 6 | . . 6 To Critical Strikes . | . . . Average Slot Usage (%) 98 | . 99 97 Engine 13 | . 14 13 Leg 27 | . 28 25 Storage 14 | . 14 14 Processor 12 | . 13 9 Protection 1 | . . 3 Energy Gun 2 | . . 7 Ballistic Gun 25 | . 28 19 Naked Turns . | . . . Heaviest Build 51 | 13 48 51 Greatest Support 40 | 20 20 40 Greatest Overweight (x) 4 | 4 2 2 Average Overweight (x) . | 2 . 1 Largest Inventory Capacity 20 | 8 20 20 Average Capacity 13 | 7 11 20 Most Carried 13 | 8 8 13 Average Carried 8 | 5 7 10 Final Capacity 20 | 8 20 20 Final Carried 9 | 6 8 9 Class Distribution -------------------- 100% | Mutant Dominant Class ---------------- Mutant | -10/Materials Mutant | -10/Mines Resources | -11 -10 -10 ----------- Run | Yrd Mat Min Matter Collected 450 | 260 91 99 Remotely . | . . . Salvage Created 473 | . 381 92 Parts 33 | . 27 6 Haulers Intercepted 1 | . 1 . Recyclers Shooed . | . . . Parts Field Recycled . | . . . Retrieved Matter . | . . . Parts Self-Destructed . | . . . Prevented . | . . . Kills | -11 -10 -10 ------- Run | Yrd Mat Min Combat Hostiles Destroyed 11 | . 9 2 Guns 11 | . 9 2 Classes Destroyed 4 | . 4 . Hauler 1 | . 1 . Operator 2 | . 2 . Swarmer 3 | . 3 . Grunt 8 | . 6 2 Best Kill Streak 3 | . 3 2 Combat Bots Only 3 | . 3 2 Max Kills in Single Turn 1 | . 1 1 Gunslinging . | . . . Exploded . | . . . Melee . | . . . Uniques/NPCs Destroyed . | . . . Combat | -11 -10 -10 -------- Run | Yrd Mat Min Hostile Shots Fired 106 | . 33 73 Missed 25 | . 9 16 Damage Taken 1146 | . 247 899 Core 259 | . 40 219 Absorbed by Shields . | . . . Redirected to Shielding 52 | . . 52 Core Remaining (%) 100 | 100 . . Volleys Fired 38 | . 29 9 Largest 2 | . 2 2 Hottest 85 | . 40 85 Shots Fired 76 | . 58 18 Gun 76 | . 58 18 Cannon . | . . . Launcher . | . . . Special . | . . . Kinetic 74 | . 58 16 Thermal 2 | . . 2 Explosive . | . . . Electromagnetic . | . . . Robot Hit Streak 18 | . 18 13 Robot Miss Streak 3 | . 3 1 Penetration Max . | . . . Secondary Targets 1 | . 1 . Max Gunslinging Chain 1 | . 1 . Shots Hit Robots 58 | . 43 15 Core Hits 30 | . 25 5 Critical Kills . | . . . Critical Parts Destroyed 1 | . 1 . Critical Strikes 1 | . 1 . Destroy 1 | . 1 . Melee Attacks . | . . . Impact . | . . . Slashing . | . . . Piercing . | . . . Sneak Attacks . | . . . Combat Hostiles . | . . . Follow-up Attacks . | . . . Damage Inflicted 655 | . 467 188 Guns 610 | . 439 171 Cannons . | . . . Explosions . | . . . Melee . | . . . Ramming 45 | . 28 17 Kinetic 576 | . 439 137 Thermal 34 | . . 34 Explosive . | . . . Electromagnetic . | . . . Impact . | . . . Slashing . | . . . Piercing . | . . . Highest Corruption 5 | . 2 5 Average Corruption 2 | . 2 2 Corruption Purged . | . . . Corruption Blocked . | . . . Effects 8 | . 4 4 Message Errors 2 | . 2 . Matter Fused 1 | . . 1 Energy Discharges 1 | . . 1 Data Loss (minor) 4 | . 2 2 Overload Shots . | . . . Overflow Damage . | . . . Projectiles . | . . . Explosions . | . . . Melee . | . . . Knockbacks 1 | . 1 . Impact 1 | . 1 . Kinetic . | . . . Secondary . | . . . Self-Inflicted Damage . | . . . Shots . | . . . Rammed 3 | . . 3 Targets Rammed 14 | . 10 4 Kicked 11 | . 10 1 Crushed . | . . . Highest Temperature 98 | . 12 98 Average Temperature 20 | . 7 32 Received Heat Transfer 405 | . 90 315 Siege Activations . | . . . Robots Corrupted . | . . . Combat Hostiles . | . . . Parts Fried . | . . . Impact Corruptions . | . . . Robots Melted . | . . . Combat Hostiles . | . . . Parts Melted . | . . . Heat Transferred 74 | . . 74 Parts Sabotaged . | . . . Parts Stolen . | . . . Parts Stripped . | . . . Power Chain Reactions . | . . . Alert | -11 -10 -10 ------- Run | Yrd Mat Min Peak Influence 239 | . 239 111 Initial 61 | . . 61 Average 75 | . 79 86 Maximum Alert Level 1 | . 1 . Low Security (%) 99 | 100 98 100 Level 1 . | . 1 . Level 2 . | . . . Level 3 . | . . . Level 4 . | . . . Level 5 . | . . . High Security . | . . . Max Security . | . . . Squads Dispatched 3 | . 3 . Investigation 1 | . 1 . Extermination . | . . . Reinforcement 2 | . 2 . Assault . | . . . Garrison . | . . . Intercept . | . . . Searches Triggered . | . . . Construction Impeded . | . . . Haulers Reinforced . | . . . Active Scanning Responses . | . . . Cargo Convoy Interrupts . | . . . Stealth | -11 -10 -10 --------- Run | Yrd Mat Min Distress Signals 3 | . 3 . Communications Jammed . | . . . Distress Signals . | . . . Times Spotted 42 | . 20 22 Peak Tracking Total 13 | . 5 13 Tactical Retreats . | . . . Traps | -11 -10 -10 ------- Run | Yrd Mat Min Traps Triggered 1 | . 1 . Indirectly . | . . . Trap Hack Attempts . | . . . Triggered . | . . . Disarmed . | . . . Reprogrammed . | . . . Reused . | . . . Traps Extracted . | . . . Installed . | . . . Triggered . | . . . Machines | -11 -10 -10 ---------- Run | Yrd Mat Min Machines Disabled . | . . . Max in Single Turn . | . . . Machines Repaired . | . . . Machines Dismantled . | . . . Machines Sabotaged . | . . . Overloaded Fab Kills . | . . . Hacking | -11 -10 -10 --------- Run | Yrd Mat Min Machines Accessed 5 | . 5 . Terminals 4 | . 4 . Fabricators . | . . . Repair Stations . | . . . Recycling Units 1 | . 1 . Scanalyzers . | . . . Garrison Access . | . . . Total Hacks 18 | . 18 . Successful 7 | . 7 . Failed 11 | . 11 . Catastrophic 2 | . 2 . Database Lockouts . | . . . Manual 16 | . 16 . Terminals 16 | . 16 . Fabricators . | . . . Repair Stations . | . . . Recycling Units 2 | . 2 . Scanalyzers . | . . . Garrison Access . | . . . Terminal Hacks 6 | . 6 . Part Schematic 3 | . 3 . Prototype ID Bank 2 | . 2 . Recycling Unit Index 1 | . 1 . Fabricator Hacks . | . . . Repair Station Hacks . | . . . Recycling Unit Hacks . | . . . Scanalyzer . | . . . Garrison Access Hacks . | . . . Unauthorized Hacks 1 | . 1 . Terminals . | . . . Fabricators . | . . . Repair Stations . | . . . Recycling Units 1 | . 1 . Tunnel 1 | . 1 . Scanalyzers . | . . . Garrison Access . | . . . Data Cores Recovered . | . . . Used . | . . . Hacking Detections 4 | . 4 . Full Trace Events . | . . . Feedback Events . | . . . Feedback Blocked . | . . . Robot Schematics Acquired . | . . . Robots Built . | . . . Authchips . | . . . Time . | . . . Total Robot Build Rating . | . . . Part Schematics Acquired 3 | . 3 . Parts Built . | . . . Authchips . | . . . Time . | . . . Total Part Build Rating . | . . . Parts Repaired . | . . . Time . | . . . Parts Recycled . | . . . Recycled Matter . | . . . Retrieved Matter . | . . . Retrieved Components . | . . . Parts Scanalyzed . | . . . Part Schematics Acquired . | . . . Parts Damaged . | . . . Bothacking | -11 -10 -10 ------------ Run | Yrd Mat Min Used RIF Installer . | . . . Robots Hacked . | . . . Non-combat . | . . . Combat . | . . . Robot Hacks Applied . | . . . Relay Couplers Released . | . . . Fabnet Peak Effective % . | . . . Robots Rewired . | . . . Allies Hacked . | . . . Hacks Repelled . | . . . Allies | -11 -10 -10 -------- Run | Yrd Mat Min Total Allies 2 | . . 2 Largest Group 2 | . . 2 Highest-Rated Group 46 | . . 46 Highest-Rated Ally 31 | . . 31 Total Orders . | . . . Ally Attacks 8 | . . 8 Total Damage 64 | . . 64 Kills 1 | . . 1 Allies Corrupted . | . . . Allies Melted . | . . . Intel | -11 -10 -10 ------- Run | Yrd Mat Min Robot Analysis Total . | . . . Derelict Logs Recovered 1 | . . 1 Drone Launches . | . . . Drone Recoveries . | . . . Exploration | -11 -10 -10 ------------- Run | Yrd Mat Min Turns Passed 1088 | 87 637 364 Spaces Moved 527 | 37 362 128 Core 26 | 26 . . Treads 2 | . . 2 Legs 485 | 11 362 112 Wheels 14 | . . 14 Hover . | . . . Flight . | . . . Fastest Speed 50 | 50 120 95 Average Speed 169 | 193 141 242 Slowest Speed 260 | 250 260 260 Overloaded Moves . | . . . Propulsion Burnouts . | . . . Robots Hopped . | . . . Cave-ins Triggered . | . . . Exploration Rate (%) 35 | 3 65 38 Regions Visited 2 Branch Regions 1 Pre-discovered Areas 1 | . 1 . Known Exits Taken . | . . . Unknown Exits Taken 2 | 1 1 . Scrap Searched . | . . . Spaces Dug . | . . . Terrain Destroyed . | . . . Melee . | . . . Projectile . | . . . AOE . | . . . Terrain Rammed . | . . . Walls Destroyed . | . . . Machines Disabled . | . . . Actions | -11 -10 -10 --------- Run | Yrd Mat Min Total 641 | 50 435 156 Wait 25 | . 24 1 Move 525 | 36 361 128 Hop . | . . . Pick Up 16 | 8 3 5 Fast Attach 5 | 4 1 . Attach 5 | 2 . 3 Detach . | . . . Swap 9 | . 3 6 Drop 4 | . 4 . Fire 38 | . 29 9 Melee . | . . . Ram . | . . . Kick 11 | . 10 1 Crush 3 | . . 3 Escape Stasis . | . . . Rewire . | . . . Trap . | . . . Miscellaneous . | . . . Route ------- -11/Scrapyard -10/Materials (discovered 3 exits: [*Mat x2] / [*Min]) -10/Mines (discovered 1 exit: [*Mat]) History --------- Turn | Location | Event 33 | -11/Scrapyard | Discovered new exit (range 15) 88 | -11/Scrapyard | Entered Materials 222 | -10/Materials | Discovered new exit (range 3) 311 | -10/Materials | Build established: Mutant 408 | -10/Materials | Discovered new exit (range 11) 547 | -10/Materials | Discovered new exit (range 16) 725 | -10/Materials | Entered Mines 780 | -10/Mines | Discovered new exit (range 3) 928 | -10/Mines | Found a damaged Exp. Sensor Array with a note attached 934 | -10/Mines | Found Prototype Device 976 | -10/Mines | Identified Exp. Sensor Array 1024 | -10/Mines | Assembled infested the area 1054 | -10/Mines | Learned 4 Materials zone layouts 1075 | -10/Mines | Core integrity fell below 50% 1088 | -10/Mines | Core integrity fell below 20% 1089 | -10/Mines | Destroyed by as-61264 with Assembled Heavy Rifle Last Messages --------------- 01076_ as-38407 destroyed. 01076_ Assault Rifle destroyed. 01076_ System corrupted by crushing effect (+1). 01078_ Particle Gun destroyed. 01078_ System corrupted by crushing effect (+1). 01079_ The unstable cave ceiling collapses. 01079_ Lgt. Treads destroyed. 01079_ as-55393 destroyed. 01079_ as-71823 destroyed. 01079_ as-93376 destroyed. 01079_ as-55587 destroyed. 01080_ D-53 Grenadier suffers critical hit (Burn). 01081_ as-86063 destroyed. 01081_ as-10254 destroyed. 01081_ as-77650 suffers critical hit (Destroy). 01081_ D-53 Grenadier overheating. 01082_ The unstable cave ceiling collapses. 01082_ D-53 Grenadier destroyed. 01083_ as-71421 destroyed. Map ----- +----------------------------------------------------+ | ############### ##??????????????????????????????? | | ??????????????## #???????????????????????????????? | | ???????????????# #???????????????????????????????? | | ???????###?????# #???????????????????????????????? | | ??????## ##???# #???????????????????????????????? | | ??????# ##?# #???????????????????????????????? | | ##????# ### #???????????????????????????????? | | #????# #???????????????????????????????? | | #????## ### #???????????????????????????????? | | #?????### ##?# #???????????????????????????????? | | #???????###???# #???????????????????????????????? | | #?????????????# ???????????????????????????????? | | ##????????????###???????????????????????????????? | | ##?????????????????????????????????????????????? | | #####?????????????????????????????????????????? | | #?????????????????????????????????????????? | | ### #?????????????????????????????????????????? | | #?????????????????????????????????????????? | | ##### #?????????????????????????????????????????? | | #???????????#####?????????????????????????? | | ######??????????## ##????????????????????????? | | #???????????????# #????????????????????????? | | ###???????????????# ##???????????? ??????????? | | ####?????????###??# ###++#### #?????????? | | ##???????## #### a ????????? | | ##??????# # @= ????????? | | ###????# # a a%! a #??????????????? | | #???## a ## a! ##??????????????? | | #??## ###### #???????????????? | | ### #??# #?????# #???????????????? | | ##???##?# % ##?????? #???????????????? | | ##?????# ##???????? #??????????????? | | ##???# % ?????????? #?????????????? | | ##??# ??????????? ????????????? | | #### ##??????????? ## ???????????? | | # ## ##?????????? #?? ????????????? | | ## " #???????????#???#????????????? | | ?# #????????????????????????????? | | ## % # #???????????????????????????? | | # ####?####???????????????????????????? | | % #???????????????????????????????????? | | ## #???????????????????????????????????? | | # ##### #???????????????????????????????????? | | ####???# # #???????????????????????????????????? | | ???????# # #???????????????????????????????????? | | ???????# # #???????????????????????????????????? | | ??????? # ???????????????????????????????????? | | ??????##### ??????????????????????????????????? | | ??????????######?????????????????????????????????? | | ?????????????????????????????????????????????????? | +----------------------------------------------------+ Best States ------------- Heat Dissipation 25 Energy Generation 10 Energy Capacity 250 Matter Stores 300 Matter Capacity 300 Sight Range 16 Terrain Scan Density 10 Propulsion Shielding 33 Evasion (%) 55 Targeting Accuracy 5 Recoil Reduction 2 Item Schematics ----------------- Cargo Storage Unit | -10/Materials | Hacked Lrg. Storage Unit | -10/Materials | Hacked Signal Interpreter | -10/Materials | Hacked Robot Schematics ------------------ None Fabricated ------------ Nothing Alien Tech Used ----------------- None Achievements -------------- None Challenges ------------ None Game ------ Seed ControlNetworkCutter Manual? 0 Play Time 00:10:29 Cumulative 279.6 hours Start 2024.05.03 @ 02:39:50 End 2024.05.03 @ 02:47:48 Sessions 1 Manual Loads 0 Difficulty Rogue Special Mode None Game No. 76 Rogue 76 Adventurer 0 Explorer 0 Win Type - Total 16 Types 8/3/3/1/1/0/0/0/0 Lore% 57 Gallery% 78 Achievement% 69 Wizard Run 0 Options --------- Layout 1 ASCII 0 Keyboard 0 Movement Numpad Keybinds 0 Fullscreen 1 Font 24/Smallcaps Map View 50x35 Zoom Use 0% Tactical HUD 1 Map Filters NONE Filters NONE Steam 1 RUN: b8bc868e-77de-43b6-85db-60af835c52ca